bitfinex/quotes_ETHUSD_20250404
["timestamp","ask_amount","ask_price","bid_price","bid_amount"]
[1743735977302,5.59937,1786.0,1785.5,5.6005]
[1743735977519,5.902,1785.9,1785.8,5.59958]
[1743735979014,5.902,1785.9,1785.7,5.59998]
[1743735979300,5.902,1785.9,1785.5,5.60057]
[1743735979500,11.50156,1785.9,1785.6,5.60032]
[1743735979670,11.50156,1785.9,1785.6,11.20054]
[1743735979671,5.902,1785.9,1785.6,11.20054]
[1743735979870,5.902,1785.9,1785.6,5.60022]
[1743735980260,11.50143,1785.9,1785.6,5.60022]
[1743735980594,11.50143,1785.9,1785.5,6.240507]
[1743735980786,11.50143,1785.9,1785.5,11.841037]
[1743735981284,5.59983,1785.8,1785.5,5.60054]
[1743735981488,11.50171,1785.9,1785.5,11.20106]
[1743735982075,17.10134,1785.9,1785.5,5.60052]
[1743735982474,11.50163,1785.9,1785.5,11.20105]
[1743735982675,17.10122,1785.9,1785.5,5.60052]
[1743735982997,5.60084,1785.5,1785.1,6.42823]
[1743735983211,12.33284,1785.8,1784.8,5.60281]
[1743735983212,5.60141,1785.3,1784.9,5.60243]
[1743735983393,17.13266,1785.2,1784.8,5.60272]
[1743735983558,5.60196,1785.1,1784.8,5.60284]
[1743735983897,5.60196,1785.1,1784.6,0.8264]
[1743735983898,5.60243,1785.0,1784.6,6.4297]
[1743735984399,5.60243,1785.0,1784.6,6.42976]
[1743735984903,5.60243,1785.0,1784.7,0.20799722]
[1743735985227,5.60197,1785.1,1784.7,5.81089722]
[1743735985430,7.315231,1785.1,1784.7,5.81089722]
[1743735985928,7.315231,1785.1,1784.8,5.60284]
[1743735986229,7.315231,1785.1,1784.8,5.81044018]
[1743735986430,6.42234,1785.0,1784.8,0.20760018]
[1743735986613,6.244784,1784.9,1784.8,0.20760018]
[1743735986817,5.60294,1784.8,1784.4,5.60407]
[1743735987019,5.92,1784.7,1784.4,5.60407]
[1743735987201,5.92,1784.7,1784.5,5.60367]
[1743735987388,5.92,1784.7,1784.4,5.60395]
[1743735987587,5.92,1784.7,1784.4,11.20788]
[1743735987792,5.92,1784.7,1784.5,5.60375]
[1743735987993,5.92,1784.7,1784.6,5.60349]
[1743735988220,5.92,1784.7,1784.5,11.2074]
[1743735988729,5.92,1784.7,1784.6,5.60349]
[1743735989140,11.922,1784.9,1784.8,5.60286]
[1743735989333,5.912,1784.9,1784.8,5.60286]
[1743735990288,6.01,1785.2,1784.7,5.6031]
[1743735990289,6.01,1785.2,1784.7,5.60303]
[1743735990406,6.42069,1785.6,1785.2,5.60155]
[1743735990407,11.941,1785.5,1785.2,5.60155]
[1743735990613,11.941,1785.5,1785.1,5.60187]
[1743735990614,18.81796,1785.5,1785.1,5.60187]
[1743735990953,5.931,1785.5,1785.2,5.60147]
[1743735991149,5.931,1785.5,1785.2,11.20293]
[1743735991337,5.931,1785.5,1785.2,5.60146]
[1743735991738,5.931,1785.5,1785.2,5.60144]
[1743735992348,5.931,1785.5,1785.3,5.60118]
[1743735992647,11.53187,1785.5,1785.1,5.6019]
[1743735992866,11.53187,1785.5,1785.1,5.60175]
[1743735993154,12.42983,1785.8,1785.4,5.60098]
[1743735993317,5.913,1785.7,1785.4,11.20196]
[1743735993721,5.913,1785.7,1785.5,5.60063]
[1743735993918,5.913,1785.7,1785.4,11.20181]
[1743735994134,5.913,1785.7,1785.3,0.8264]
[1743735994135,5.60052,1785.6,1785.3,0.8264]
[1743735994512,11.51309,1785.7,1785.3,6.42765]
[1743735994727,5.913,1785.7,1785.3,6.4276]
[1743735994941,6.8301,1785.8,1785.3,1.46916]
[1743735995147,5.9,1785.7,1785.5,5.60055]
[1743735995350,5.9,1785.7,1785.6,5.60035]
[1743735995555,6.01,1785.8,1785.6,11.2007]
[1743735995711,11.908,1785.8,1785.6,11.2007]
[1743735995911,11.908,1785.8,1785.7,5.60004]
[1743735996124,11.908,1785.8,1785.6,5.60035]
[1743735996312,11.908,1785.8,1785.5,5.60047]
[1743735996513,11.908,1785.8,1785.5,11.20097]
[1743735996813,13.658754,1785.8,1785.6,0.21399666]
[1743735997040,6.8301,1785.7,1785.1,5.6018]
[1743735997350,5.60067,1785.5,1785.2,0.21558369]
[1743735997541,5.898,1785.4,1785.2,5.6015]
[1743735997726,5.898,1785.4,1785.3,0.21203349]
[1743735997921,6.01,1785.7,1785.5,5.60063]
[1743735998121,12.6928,1786.0,1785.7,5.59984]
[1743735998336,12.6928,1786.0,1785.7,11.19977]
[1743735998541,12.6928,1786.0,1785.8,0.2100795]
[1743735999113,5.59941,1785.9,1785.8,0.2100795]
[1743735999317,5.59995,1785.8,1785.4,6.38236]
[1743735999518,5.59995,1785.8,1785.4,11.98323]
[1743735999830,5.59995,1785.8,1785.5,0.21126943]
[1743736000154,7.988615,1785.9,1785.5,5.81179943]
[1743736000700,13.588295,1785.9,1785.6,0.21087274]
[1743736000988,2.389145,1785.9,1785.6,5.81099274]
[1743736001190,12.6928,1786.0,1785.7,11.19967]
[1743736001396,12.6928,1786.0,1785.9,5.59941]
[1743736001397,6.01,1786.0,1785.9,5.59941]
[1743736001599,49.601,1786.1,1786.0,5.5991]
[1743736001600,6.01,1786.1,1786.0,5.5991]
[1743736001955,6.01,1786.1,1786.0,5.80818024]
[1743736002550,6.01,1786.1,1786.0,0.20908024]
[1743736002750,5.59914,1786.0,1785.7,5.59997]
[1743736002979,11.19843,1786.0,1785.6,5.60034]
[1743736003179,5.59914,1786.0,1785.6,5.60026]
[1743736003486,11.19843,1786.0,1785.6,5.60026]
[1743736003650,6.37694,1786.0,1785.6,11.20045]
[1743736004353,6.37694,1786.0,1785.6,11.20042]
[1743736004549,8.3505817,1786.0,1785.5,6.38201]
[1743736004756,5.59976,1785.8,1785.5,6.38201]
[1743736005063,11.48376,1785.8,1785.5,6.38201]
[1743736005480,5.884,1785.8,1785.5,5.60063]
[1743736005885,11.48386,1785.8,1785.5,5.60063]
[1743736006188,5.884,1785.8,1785.5,5.60055]
[1743736006565,11.48379,1785.8,1785.5,5.60055]
[1743736006755,11.48379,1785.8,1785.4,11.20179]
[1743736006979,11.48379,1785.8,1785.5,5.60063]
[1743736007187,11.48379,1785.8,1785.5,11.20117]
[1743736007390,11.48379,1785.8,1785.5,5.60054]
[1743736007907,11.48379,1785.8,1785.4,11.20179]
[1743736008085,0.7778,1785.7,1785.2,0.7815]
[1743736008299,5.60079,1785.5,1785.1,5.60178]
[1743736008468,11.4732,1785.4,1785.0,6.38364]
[1743736008785,11.4732,1785.4,1785.1,5.6019]
[1743736009293,5.60137,1785.3,1785.0,6.38364]
[1743736009588,5.60137,1785.3,1785.0,5.60214]
[1743736009776,5.60137,1785.3,1785.0,5.6021]
[1743736010287,5.60137,1785.3,1784.9,5.60242]
[1743736011082,5.60162,1785.2,1784.9,5.60242]
[1743736011671,5.60176,1785.2,1784.9,5.60242]
[1743736011872,5.60143,1785.3,1785.0,0.19587446]
[1743736012199,5.60164,1785.2,1785.0,0.19587446]
[1743736012507,5.60192,1785.1,1785.0,0.19587446]
[1743736012678,5.60192,1785.1,1784.7,11.20616]
[1743736012861,5.60192,1785.1,1785.0,0.19587446]
[1743736013065,6.01,1785.2,1785.1,5.60192]
[1743736013380,6.01,1785.2,1785.1,5.79739755]
[1743736014314,6.01,1785.2,1785.1,7.57520231]
[1743736015998,5.849,1785.4,1785.3,5.60129]
[1743736016187,5.849,1785.4,1785.2,5.60154]
[1743736016397,5.849,1785.4,1785.2,11.20308]
[1743736016697,5.849,1785.4,1785.3,0.1943608]
[1743736016899,5.849,1785.4,1785.3,5.7956508]
[1743736017580,5.849,1785.4,1785.3,0.1943608]
[1743736017903,5.829,1785.5,1785.3,5.7955708]
[1743736018119,5.829,1785.5,1785.3,11.3967808]
[1743736018268,5.829,1785.5,1785.3,0.1943608]
[1743736019226,6.01,1785.7,1785.3,0.82995613]
[1743736019426,6.01,1785.7,1785.5,5.60053]
[1743736019727,6.01,1785.7,1785.6,0.19393393]
[1743736020090,6.01,1785.7,1785.4,11.97825]
[1743736020440,6.01,1785.7,1785.6,5.79425457]
[1743736020588,6.01,1785.7,1785.5,5.79472126]
[1743736020785,6.01,1785.7,1785.6,0.19390457]
[1743736022034,6.01,1785.7,1785.6,5.79425457]
[1743736022191,11.61004,1785.7,1785.6,0.19390457]
[1743736022390,14.682821,1785.7,1785.6,0.19390457]
[1743736022725,5.60073,1785.5,1785.2,5.60149]
[1743736023040,9.082781,1785.7,1785.6,5.60035]
[1743736023041,6.01,1785.7,1785.6,5.60035]
[1743736023408,6.01,1785.7,1785.6,5.79340311]
[1743736024289,6.36808,1786.2,1785.8,5.59973]
[1743736024495,5.813,1786.1,1785.9,5.59938]
[1743736024722,12.03128011,1786.3,1785.9,6.56768331]
[1743736024926,5.812,1786.2,1786.0,11.19788]
[1743736025247,5.812,1786.2,1785.9,1.62513164]
[1743736025248,5.5991,1786.0,1785.9,0.19186331]
[1743736025396,5.59954,1785.9,1785.5,5.60061]
[1743736025733,5.59954,1785.9,1785.6,5.60024]
[1743736026391,5.59915,1786.0,1785.6,11.20043]
[1743736026596,5.59915,1786.0,1785.6,11.20042]
[1743736027005,11.19843,1786.0,1785.7,0.19245099]
[1743736027639,5.59915,1786.0,1785.7,0.19245099]
[1743736027845,6.36843,1786.1,1785.7,11.39228099]
[1743736028006,6.36843,1786.1,1785.7,5.79233099]
[1743736028208,5.5991,1786.0,1785.7,5.79233099]
[1743736029150,6.36843,1786.1,1785.7,0.19245099]
[1743736029151,5.59961,1785.9,1785.7,0.19245099]
[1743736029303,5.59986,1785.8,1785.5,5.60055]
[1743736029706,5.791,1785.8,1785.6,5.60034]
[1743736029906,5.791,1785.8,1785.7,5.60004]
[1743736030348,5.59852,1786.2,1785.7,1.120025]
[1743736030557,12.40021,1786.3,1785.9,5.59928]
[1743736030558,5.79,1786.0,1785.9,5.59928]
[1743736031725,6.01,1786.3,1786.0,5.59881]
[1743736031953,5.789,1786.2,1786.0,5.59881]
[1743736032451,5.789,1786.2,1786.1,5.59879]
[1743736036634,0.792,1786.5,1786.2,11.19685]
[1743736036834,5.76,1786.5,1786.2,11.19685]
[1743736037054,5.76,1786.5,1786.3,5.59815]
[1743736037262,5.76,1786.5,1786.4,5.59785]
[1743736037645,5.76,1786.5,1786.2,6.39763]
[1743736037852,5.76,1786.5,1786.3,5.59807]
[1743736038151,11.35767,1786.5,1786.2,6.39757]
[1743736038547,18.27123844,1786.5,1786.2,5.59837]
[1743736038730,12.67345844,1786.5,1786.2,5.59837]
[1743736039365,11.35767,1786.5,1786.2,5.59837]
[1743736039867,11.35767,1786.5,1786.2,11.19675]
[1743736040159,16.95539,1786.5,1786.2,5.59835]
[1743736040366,5.59805,1786.4,1786.0,11.19806]
[1743736040687,5.59805,1786.4,1786.1,11.19745]
[1743736040832,5.59805,1786.4,1786.1,5.59868]
[1743736041166,5.598,1786.4,1786.1,5.59868]
[1743736041554,5.598,1786.4,1786.1,5.59866]
[1743736041868,5.598,1786.4,1786.2,0.18706374]
[1743736042866,11.35759,1786.5,1786.2,0.18706374]
[1743736043164,7.17623856,1786.5,1786.2,5.78543374]
[1743736043370,5.742,1786.5,1786.3,5.59803]
[1743736043671,5.742,1786.5,1786.4,0.18627103]
[1743736045634,5.742,1786.5,1786.4,5.78412103]
[1743736046137,11.738,1786.6,1786.4,5.78412103]
[1743736046339,11.738,1786.6,1786.5,5.59753]
[1743736046751,11.738,1786.6,1786.5,5.78293532]
[1743736047360,11.738,1786.6,1786.5,0.18540532]
[1743736048950,11.738,1786.6,1786.5,5.78293532]
[1743736049667,11.719,1786.6,1786.5,5.78293532]
[1743736051273,5.709,1786.6,1786.5,5.78293532]
[1743736052068,5.709,1786.6,1786.5,0.18540532]
[1743736055878,5.681,1786.7,1786.5,0.18540532]
[1743736056564,11.27794,1786.7,1786.5,0.18540532]
[1743736056973,5.59722,1786.6,1786.5,0.18540532]
[1743736057171,5.59722,1786.6,1786.3,5.59815]
[1743736057378,5.59722,1786.6,1786.5,0.18470124]
[1743736057567,12.965401,1786.7,1786.4,0.18509753]
[1743736057746,18.562451,1786.7,1786.5,0.18470124]
[1743736058152,18.562451,1786.7,1786.3,11.19612]
[1743736058345,5.59732,1786.6,1786.3,11.19609]
[1743736058577,5.59732,1786.6,1786.3,5.59803]
[1743736058883,18.562461,1786.7,1786.3,5.59803]
[1743736059067,18.562461,1786.7,1786.3,11.19606]
[1743736059266,11.27795,1786.7,1786.3,5.59803]
[1743736059467,0.7637,1786.5,1786.0,6.36848]
[1743736059680,5.59847,1786.3,1785.9,5.59937]
[1743736059981,11.26751,1786.2,1785.8,11.96878]
[1743736060163,5.66620131,1786.2,1785.9,5.59928]
[1743736060366,5.599,1786.1,1785.8,2.0782805]
[1743736060572,6.3627,1786.1,1785.7,5.59991]
[1743736060775,6.3627,1786.1,1785.7,6.796871]
[1743736060952,5.59921,1786.0,1785.7,6.796871]
[1743736061397,6.3627,1786.1,1785.7,6.796871]
[1743736061763,0.7637,1786.1,1785.8,5.59972]
[1743736061960,11.67620131,1786.2,1786.0,5.59905]
[1743736062682,11.67620131,1786.2,1785.9,11.96781]
[1743736062875,11.67620131,1786.2,1785.9,13.164621]
[1743736063055,11.67620131,1786.2,1785.9,7.565311]
[1743736063694,11.67620131,1786.2,1785.9,13.164621]
[1743736064199,11.67620131,1786.2,1786.0,11.1979]
[1743736064400,11.67620131,1786.2,1786.0,5.59895]
[1743736064556,11.67620131,1786.2,1786.0,6.19366499]
[1743736065064,11.67620131,1786.2,1786.1,5.59879]
[1743736066596,6.01,1786.2,1786.1,5.59879]
[1743736067391,5.67,1786.5,1786.3,5.59794]
[1743736067782,5.67,1786.5,1786.4,5.59785]
[1743736068200,6.36066,1786.7,1786.4,11.1956]
[1743736068496,5.67,1786.5,1786.4,5.59775]
[1743736068655,5.67,1786.5,1786.4,6.71734]
[1743736068990,5.67,1786.5,1786.4,1.11959]
[1743736069304,5.67,1786.5,1786.3,11.19605]
[1743736069599,5.67,1786.5,1786.3,5.59801]
[1743736069894,5.67,1786.5,1786.3,11.19603]
[1743736070076,5.67,1786.5,1786.4,5.59785]
[1743736070491,5.67,1786.5,1786.3,11.19605]
[1743736070703,5.67,1786.5,1786.3,12.315655]
[1743736071101,5.67,1786.5,1786.4,5.59785]
[1743736071303,5.67,1786.5,1786.2,5.59837]
[1743736071466,5.67,1786.5,1786.2,11.19673]
[1743736071823,11.26757,1786.5,1786.1,6.3681]
[1743736072096,5.67,1786.5,1786.2,11.38360905]
[1743736072310,5.67,1786.5,1786.2,11.38354905]
[1743736072508,11.26755,1786.5,1786.2,5.78517905]
[1743736072661,11.26755,1786.5,1786.2,11.38353905]
[1743736072862,11.26755,1786.5,1786.2,11.38354905]
[1743736073070,5.67,1786.5,1786.3,11.19606]
[1743736073290,5.67,1786.5,1786.4,0.18603634]
[1743736074502,5.67,1786.5,1786.2,12.48165305]
[1743736074802,5.67,1786.5,1786.3,0.18643267]
[1743736076198,5.67,1786.5,1786.3,5.78455267]
[1743736076400,5.67,1786.5,1786.3,6.79180511]
[1743736076613,11.26757,1786.5,1786.3,0.18643267]
[1743736076770,6.39465,1786.4,1786.3,0.18643267]
[1743736077106,12.40465,1786.4,1785.9,5.59936]
[1743736077266,12.40465,1786.4,1785.8,5.59968]
[1743736077267,5.59854,1786.2,1785.8,5.59968]
[1743736077466,5.669,1786.1,1785.9,0.18757838]
[1743736077661,11.26783,1786.1,1785.7,12.00652]
[1743736077984,16.86683,1786.1,1785.8,0.18768152]
[1743736078187,11.26783,1786.1,1785.8,5.78730152]
[1743736079379,11.26783,1786.1,1785.8,0.18768152]
[1743736079706,16.86692,1786.1,1785.8,0.18768152]
[1743736080414,5.59912,1786.0,1785.8,0.18768152]
[1743736080778,5.59941,1785.9,1785.8,0.18768152]
[1743736081092,5.59941,1785.9,1785.5,12.00769]
[1743736081289,5.59941,1785.9,1785.8,0.1887378]
[1743736081491,5.59941,1785.9,1785.6,6.801109]
[1743736081813,5.59941,1785.9,1785.7,0.1891344]
[1743736081981,11.99519,1786.0,1785.7,0.1891344]
[1743736082487,11.99522,1786.0,1785.7,0.1891344]
[1743736082691,6.39596,1786.0,1785.7,0.1891344]
[1743736082891,5.59946,1785.9,1785.7,0.1891344]
[1743736083668,5.59973,1785.8,1785.7,0.1891344]
[1743736084083,11.838666,1785.9,1785.5,5.60045]
[1743736084283,11.19904,1785.9,1785.7,0.17482944]
[1743736084604,6.39597,1786.0,1785.8,0.17443284]
[1743736084788,6.39613,1786.0,1785.6,11.20049]
[1743736084980,11.99549,1786.0,1785.6,11.20049]
[1743736085183,5.59943,1785.9,1785.7,0.17482944]
[1743736085381,11.19907,1785.9,1785.7,0.17482944]
[1743736085701,11.19907,1785.9,1785.5,11.20113]
[1743736085912,6.39591,1786.0,1785.8,0.17443284]
[1743736086126,6.39591,1786.0,1785.6,6.720293]
[1743736086329,6.39591,1786.0,1785.9,0.17403629]
[1743736086470,5.59983,1785.8,1785.6,1.120113]
[1743736086670,11.19929,1785.9,1785.6,1.120113]
[1743736086912,11.19929,1785.9,1785.7,0.17482944]
[1743736087123,5.60004,1785.7,1785.4,5.60093]
[1743736087420,5.67,1785.7,1785.5,0.17562278]
[1743736088421,5.67,1785.7,1785.5,5.77628278]
[1743736088635,6.01531826,1785.9,1785.6,5.60035]
[1743736088912,5.59918,1786.0,1785.7,6.36934]
[1743736089122,5.59918,1786.0,1785.8,0.17443284]
[1743736089293,5.67,1785.9,1785.8,11.37367284]
[1743736089496,5.67,1786.3,1786.1,5.59871]
[1743736089702,5.67,1786.3,1786.2,0.17284689]
[1743736089904,5.67,1786.3,1786.2,5.77131689]
[1743736090099,5.67,1786.3,1786.2,6.98524558]
[1743736090514,6.01,1786.5,1786.3,5.59795]
[1743736090809,6.01,1786.5,1786.4,5.76990418]
[1743736091210,6.01,1786.5,1786.4,0.17205418]
[1743736091675,6.01,1786.5,1786.3,5.59811]
[1743736091881,6.01,1786.5,1786.4,0.17205418]
[1743736092384,6.7669,1786.5,1786.1,0.7693]
[1743736092603,6.01,1786.5,1786.4,0.17205418]
[1743736092802,6.01,1786.5,1786.3,5.59806]
[1743736093008,6.01,1786.5,1786.4,5.76990418]
[1743736093719,5.67,1786.6,1786.5,6.36683]
[1743736094017,6.06,1786.9,1786.8,5.59659]
[1743736094187,5.719,1786.9,1786.8,0.559659]
[1743736094387,5.719,1786.9,1786.8,0.73012829]
[1743736094793,5.719,1786.9,1786.8,6.32671829]
[1743736095915,5.719,1786.9,1786.8,7.09601829]
[1743736096116,0.05,1786.9,1786.8,7.70198024]
[1743736097340,0.05,1786.9,1786.8,7.64601829]
[1743736098211,0.05,1786.9,1786.8,7.70197143]
[1743736098894,0.05,1786.9,1786.8,7.64601829]
[1743736099826,0.05,1786.9,1786.8,7.70196741]
[1743736100231,0.05,1786.9,1786.8,7.64601829]
[1743736100727,0.05,1786.9,1786.8,7.15197245]
[1743736100899,0.05,1786.9,1786.8,7.64601829]
[1743736101508,0.05,1786.9,1786.8,7.70196745]
[1743736103531,0.05,1786.9,1786.8,7.64601829]
[1743736103725,0.05,1786.9,1786.8,7.70196747]
[1743736103908,0.05,1786.9,1786.8,7.64601829]
[1743736104305,0.05,1786.9,1786.8,7.70196618]
[1743736104531,0.05,1786.9,1786.8,7.64601829]
[1743736112761,0.7569,1787.6,1787.4,5.59445]
[1743736113048,0.8236,1787.8,1787.7,5.59377]
[1743736113347,0.8236,1787.8,1787.7,5.75213809]
[1743736114063,0.8236,1787.8,1787.7,0.15836809]
[1743736114642,0.8236,1787.8,1787.4,0.559445]
[1743736114964,0.8236,1787.8,1787.7,5.59377]
[1743736115161,0.8236,1787.8,1787.6,5.59386]
[1743736115368,0.8236,1787.8,1787.7,0.15792989]
[1743736116023,6.41706,1787.8,1787.7,0.15792989]
[1743736116256,6.41706,1787.8,1787.5,5.59433]
[1743736116450,6.41706,1787.8,1787.7,0.15792989]
[1743736116622,6.41706,1787.8,1787.6,0.15832565]
[1743736116819,6.41706,1787.8,1787.7,0.15792989]
[1743736117038,0.8236,1787.8,1787.7,0.15792989]
[1743736117237,0.8236,1787.8,1787.6,5.59409]
[1743736117462,0.8236,1787.8,1787.7,0.15792989]
[1743736119970,0.8236,1787.8,1787.6,5.59394]
[1743736120170,0.8236,1787.8,1787.6,11.93762299]
[1743736120373,0.8236,1787.8,1787.7,0.15792989]
[1743736120761,0.8236,1787.8,1787.6,6.34364299]
[1743736120962,0.8236,1787.8,1787.7,0.15792989]
[1743736121569,0.8236,1787.8,1787.5,11.18867]
[1743736121771,0.8236,1787.8,1787.6,5.59406]
[1743736121960,0.8236,1787.8,1787.6,5.75238565]
[1743736122873,0.8236,1787.8,1787.6,0.15832565]
[1743736123073,6.41717,1787.8,1787.6,0.15832565]
[1743736125072,0.8236,1787.8,1787.6,0.15832565]
[1743736125577,0.8236,1787.8,1787.6,5.75240565]
[1743736125874,0.8236,1787.8,1787.6,0.15832565]
[1743736126074,6.41718,1787.8,1787.6,0.15832565]
[1743736126278,6.37857,1787.7,1787.6,0.15832565]
[1743736126444,9.37857,1787.7,1787.6,0.15832565]
[1743736126774,6.38031,1787.2,1786.8,11.752699]
[1743736126945,12.04331,1787.2,1786.9,5.72956922]
[1743736127144,17.63888,1787.2,1786.9,0.13336922]
[1743736127693,12.04331,1787.2,1786.9,0.13336922]
[1743736127856,12.04331,1787.2,1786.9,5.72959922]
[1743736128262,6.4478,1787.2,1786.9,6.91819104]
[1743736128566,6.4478,1787.2,1787.1,5.59565]
[1743736128567,5.663,1787.2,1787.1,5.59565]
[1743736128755,5.663,1787.2,1787.1,5.72822713]
[1743736129340,6.4478,1787.2,1787.1,0.13257713]
[1743736129565,6.4478,1787.2,1786.9,5.59624]
[1743736129566,6.4478,1787.2,1787.0,5.59591]
[1743736129755,6.4478,1787.2,1787.1,0.13257713]
[1743736130774,12.04314,1787.2,1787.1,0.13257713]
[1743736130971,17.63869,1787.2,1786.8,6.156009]
[1743736131189,17.63869,1787.2,1786.9,0.13336922]
[1743736131475,12.04314,1787.2,1786.9,0.13336922]
[1743736132059,6.4478,1787.2,1786.9,5.72945922]
[1743736132259,6.4478,1787.2,1787.0,5.59593]
[1743736132655,6.4478,1787.2,1787.1,0.13257713]
[1743736133192,5.663,1787.2,1787.1,5.72822713]
[1743736133367,6.8278,1787.4,1787.2,5.5953]
[1743736133569,5.663,1787.3,1787.2,6.72765271]
[1743736133763,5.663,1787.3,1787.2,1.13235271]
[1743736134185,5.663,1787.3,1787.1,5.5955]
[1743736134680,5.663,1787.3,1786.9,6.78469782]
[1743736134889,16.85349,1787.3,1786.9,6.78469782]
[1743736135094,11.25819,1787.3,1786.9,6.78469782]
[1743736135381,16.85343,1787.3,1786.9,6.78469782]
[1743736135589,11.25819,1787.3,1786.9,12.38082782]
[1743736135745,11.25819,1787.3,1786.9,6.78469782]
[1743736136154,6.8278,1787.4,1787.1,5.59565]
[1743736136388,12.4908,1787.4,1787.1,5.59565]
[1743736136761,18.08551,1787.4,1787.0,6.27440978]
[1743736136961,18.08551,1787.4,1787.0,0.67846978]
[1743736137181,11.19034,1787.3,1786.9,5.59615]
[1743736137387,11.19033,1787.3,1786.9,5.59615]
[1743736137592,5.5951,1787.3,1786.9,5.59615]
[1743736137777,5.5951,1787.3,1786.9,11.19234]
[1743736137976,5.59534,1787.2,1786.9,5.59615]
[1743736138160,5.5951,1787.3,1786.9,12.393477]
[1743736138480,5.5951,1787.3,1786.9,6.797297]
[1743736138669,5.5951,1787.3,1787.0,5.59587]
[1743736138878,5.59526,1787.3,1786.9,6.797357]
[1743736139078,5.59537,1787.2,1786.9,6.797357]
[1743736139585,5.59535,1787.2,1786.9,1.201147]
[1743736139787,0.8178,1787.1,1786.8,11.19304]
[1743736139969,0.8178,1787.1,1786.8,5.59646]
[1743736140378,0.8178,1787.1,1786.6,0.8188]
[1743736140711,0.8178,1787.1,1785.9,43.658]
[1743736140712,6.41415,1786.9,1786.5,5.59753]
[1743736140880,0.8178,1786.9,1786.6,6.156843]
[1743736141081,0.8178,1786.9,1786.6,11.753933]
[1743736141279,0.8178,1786.9,1786.6,6.156843]
[1743736141485,0.8178,1786.9,1786.6,6.156833]
[1743736141994,0.8178,1786.9,1786.8,5.59659]
[1743736142290,5.663,1787.0,1786.8,6.715856]
[1743736142291,5.664,1787.0,1786.8,6.715856]
[1743736142476,5.664,1787.0,1786.8,1.119336]
[1743736142678,6.4818,1787.0,1786.8,1.119336]
[1743736142890,6.4818,1787.0,1786.8,6.715886]
[1743736143297,5.664,1787.0,1786.8,6.715836]
[1743736143484,5.664,1787.0,1786.9,5.59628]
[1743736144367,11.673,1787.3,1787.1,5.59552]
[1743736144561,0.8178,1787.4,1786.9,0.05595459]
[1743736144893,5.663,1787.5,1787.3,11.1899]
[1743736145279,5.663,1787.5,1787.3,5.59487]
[1743736146765,6.8278,1787.6,1787.4,5.72819709]
[1743736147003,6.8278,1787.6,1787.4,0.13348709]
[1743736147207,6.01,1787.6,1787.5,5.5944]
[1743736147509,6.01,1787.6,1787.5,5.72749124]
[1743736147697,6.01,1787.6,1787.5,6.85970736]
[1743736148802,5.663,1787.7,1787.6,5.59409]
[1743736149005,5.713,1787.9,1787.6,5.59404]
[1743736149210,5.713,1787.9,1787.6,5.72565564]
[1743736149411,5.713,1787.9,1787.6,5.72560564]
[1743736149617,11.30626,1787.9,1787.6,0.13167564]
[1743736149775,16.89959,1787.9,1787.6,0.13167564]
[1743736149980,16.89959,1787.9,1787.3,5.59499]
[1743736149981,6.3792,1787.7,1787.3,5.59499]
[1743736150190,5.59412,1787.6,1787.2,11.19056]
[1743736150478,5.663,1787.5,1787.1,11.19124]
[1743736150799,5.663,1787.5,1787.2,11.19046]
[1743736151324,5.663,1787.5,1787.2,5.59519]
[1743736151693,5.663,1787.5,1787.2,11.19041]
[1743736152190,5.663,1787.5,1787.4,5.59471]
[1743736152574,6.01,1787.6,1787.5,5.5944]
[1743736152775,6.01,1787.6,1787.5,6.713311]
[1743736153985,5.712,1787.9,1787.6,5.59397]
[1743736154479,0.7853,1787.8,1787.5,5.5944]
[1743736154822,0.7853,1787.8,1787.6,5.59405]
[1743736155116,0.7853,1787.8,1787.5,11.1887]
[1743736155281,0.7853,1787.8,1787.6,5.59406]
[1743736155714,0.7853,1787.8,1787.5,11.1886]
[1743736156020,0.7853,1787.8,1787.5,5.59435]
[1743736157080,0.7853,1787.8,1787.5,11.18857]
[1743736157384,6.3788,1787.8,1787.4,11.18936]
[1743736157798,6.3788,1787.8,1787.4,6.792716]
[1743736157799,11.97243,1787.8,1787.4,6.792716]
[1743736157997,0.7853,1787.8,1787.4,1.198036]
[1743736158318,0.7853,1787.8,1787.2,5.59527]
[1743736158319,0.7853,1787.8,1787.5,11.1886]
[1743736158525,0.7853,1787.8,1787.5,5.59429]
[1743736158731,0.7853,1787.8,1787.5,5.59425]
[1743736158883,6.37882,1787.8,1787.4,11.18928]
[1743736159322,11.9725,1787.8,1787.4,5.59464]
[1743736159612,6.37882,1787.8,1787.4,5.59457]
[1743736159820,6.37882,1787.8,1787.5,5.59431]
[1743736160021,6.37882,1787.8,1787.4,11.748617]
[1743736160618,0.7853,1787.8,1787.5,5.59435]
[1743736160830,0.7853,1787.8,1787.5,11.1886]
[1743736161119,0.7853,1787.8,1787.5,5.59425]
[1743736161324,6.37879,1787.8,1787.5,5.59425]
[1743736162000,11.97246,1787.8,1787.6,0.13202527]
[1743736162201,6.37879,1787.8,1787.6,0.13202527]
[1743736162394,6.37879,1787.8,1787.4,11.748697]
[1743736162720,6.37879,1787.8,1787.5,5.59429]
[1743736162922,6.37879,1787.8,1787.5,5.72621574]
[1743736163097,0.7853,1787.8,1787.5,11.32050574]
[1743736163421,0.7853,1787.8,1787.5,5.72619574]
[1743736163783,6.37877,1787.8,1787.5,5.72619574]